[Event "*** Titled Tuesday Blitz"]
[Site "Chess.com"]
[Date "2020.11.03"]
[Round "5"]
[White "levallem"]
[Black "WeAintSurePal"]
[Result "1-0"]
[WhiteElo "2247"]
[BlackElo "2344"]
[TimeControl "180+1"]
[EndTime "10:58:49 PST"]
[Termination "levallem won by checkmate"]

1. e4 {[%clk 0:02:46.6]} 1... c6 {[%clk 0:02:56.8]} 2. d4 {[%clk 0:02:44.7]}
2... d5 {[%clk 0:02:57.7]} 3. e5 {[%clk 0:02:44.6]} 3... c5 {[%clk 0:02:57.5]}
4. c3 {[%clk 0:02:44.3]} 4... Nc6 {[%clk 0:02:57.1]} 5. f4 {[%clk 0:02:44.4]}
5... cxd4 {[%clk 0:02:56.3]} 6. cxd4 {[%clk 0:02:44.1]} 6... Nh6 {[%clk
0:02:56.8]} 7. Nc3 {[%clk 0:02:31.3]} 7... Bg4 {[%clk 0:02:55.3]} 8. Be2 {[%clk
0:02:29]} 8... Bxe2 {[%clk 0:02:54.4]} 9. Ncxe2 {[%clk 0:02:29.9]} 9... e6
{[%clk 0:02:54.5]} 10. Nf3 {[%clk 0:02:30.2]} 10... Bb4+ {[%clk 0:02:51.5]} 11.
Bd2 {[%clk 0:02:28.9]} 11... Qa5 {[%clk 0:02:51.7]} 12. O-O {[%clk 0:02:24.7]}
12... Nf5 {[%clk 0:02:50.5]} 13. Bxb4 {[%clk 0:02:22]} 13... Qxb4 {[%clk
0:02:48.6]} 14. Qd3 {[%clk 0:02:16.1]} 14... h5 {[%clk 0:02:45.4]} 15. a3 {[%clk
0:02:12.3]} 15... Qc4 {[%clk 0:02:42.8]} 16. Qxc4 {[%clk 0:02:02.3]} 16... dxc4
{[%clk 0:02:43.7]} 17. Rfc1 {[%clk 0:02:02.7]} 17... b5 {[%clk 0:02:42.2]} 18.
a4 {[%clk 0:02:02.9]} 18... bxa4 {[%clk 0:02:34.2]} 19. Rxc4 {[%clk 0:02:01.9]}
19... Kd7 {[%clk 0:02:34]} 20. Raxa4 {[%clk 0:01:48]} 20... Rab8 {[%clk
0:02:33.2]} 21. b4 {[%clk 0:01:47.5]} 21... Ne3 {[%clk 0:02:27.1]} 22. Rxc6
{[%clk 0:01:07.5]} 22... Kxc6 {[%clk 0:02:25.5]} 23. Rxa7 {[%clk 0:01:07.2]}
23... Rb7 {[%clk 0:02:24.8]} 24. b5+ {[%clk 0:00:27.1]} 24... Kb6 {[%clk
0:02:21.9]} 25. Ra3 {[%clk 0:00:26.8]} 25... Nd5 {[%clk 0:02:18.1]} 26. Rb3
{[%clk 0:00:26.3]} 26... Ka5 {[%clk 0:02:17.6]} 27. Kf2 {[%clk 0:00:20]} 27...
Rxb5 {[%clk 0:02:16.6]} 28. Ra3+ {[%clk 0:00:20.5]} 28... Kb6 {[%clk 0:02:16.5]}
29. Ng5 {[%clk 0:00:16.2]} 29... Rf8 {[%clk 0:02:12.6]} 30. g3 {[%clk
0:00:14.3]} 30... g6 {[%clk 0:02:12.3]} 31. h4 {[%clk 0:00:13.4]} 31... Kc7
{[%clk 0:02:09.3]} 32. Ne4 {[%clk 0:00:13]} 32... Kb8 {[%clk 0:01:51.7]} 33. Nd6
{[%clk 0:00:12]} 33... Rb2 {[%clk 0:01:51]} 34. Kf3 {[%clk 0:00:10.5]} 34... f5
{[%clk 0:01:40.5]} 35. Nc3 {[%clk 0:00:09.6]} 35... Nxc3 {[%clk 0:01:38.8]} 36.
Rxc3 {[%clk 0:00:10.5]} 36... Rf7 {[%clk 0:01:34.4]} 37. Nxf7 {[%clk 0:00:10.2]}
37... Kb7 {[%clk 0:01:32.3]} 38. Nd6+ {[%clk 0:00:10.2]} 38... Ka6 {[%clk
0:01:30.8]} 39. Rc6+ {[%clk 0:00:08]} 39... Ka7 {[%clk 0:01:29.4]} 40. Rc7+
{[%clk 0:00:08]} 40... Kb8 {[%clk 0:01:26.7]} 41. Rg7 {[%clk 0:00:06.8]} 41...
Rb3+ {[%clk 0:01:26.6]} 42. Kg2 {[%clk 0:00:06.7]} 42... Rb2+ {[%clk 0:01:26.7]}
43. Kh3 {[%clk 0:00:07.1]} 43... Rd2 {[%clk 0:01:26.9]} 44. Rxg6 {[%clk
0:00:07.6]} 44... Rxd4 {[%clk 0:01:26.2]} 45. Rxe6 {[%clk 0:00:08.2]} 45... Rd3
{[%clk 0:01:26.6]} 46. Nxf5 {[%clk 0:00:07.9]} 46... Kc7 {[%clk 0:01:26.2]} 47.
Rh6 {[%clk 0:00:08.4]} 47... Kd7 {[%clk 0:01:25.4]} 48. Rxh5 {[%clk 0:00:09.3]}
48... Ke6 {[%clk 0:01:24.8]} 49. Kg4 {[%clk 0:00:10.2]} 49... Rd8 {[%clk
0:01:23.6]} 50. Rh6+ {[%clk 0:00:10.2]} 50... Kf7 {[%clk 0:01:22.2]} 51. Rf6+
{[%clk 0:00:10.7]} 51... Kg8 {[%clk 0:01:22.3]} 52. h5 {[%clk 0:00:10.9]} 52...
Rd7 {[%clk 0:01:21.3]} 53. h6 {[%clk 0:00:10.8]} 53... Kh7 {[%clk 0:01:20.8]}
54. Kg5 {[%clk 0:00:10.4]} 54... Rd8 {[%clk 0:01:19.3]} 55. e6 {[%clk
0:00:10.7]} 55... Rg8+ {[%clk 0:01:18.1]} 56. Kh5 {[%clk 0:00:11.3]} 56... Re8
{[%clk 0:01:18.2]} 57. Rf7+ {[%clk 0:00:11.3]} 57... Kh8 {[%clk 0:01:17.5]} 58.
e7 {[%clk 0:00:11.8]} 58... Rg8 {[%clk 0:01:12.1]} 59. Rf8 {[%clk 0:00:11.2]}
59... Kh7 {[%clk 0:01:10.8]} 60. Rxg8 {[%clk 0:00:02.9]} 60... Kxg8 {[%clk
0:01:09.8]} 61. e8=Q+ {[%clk 0:00:02.9]} 61... Kh7 {[%clk 0:01:10.7]} 62. Qf7+
{[%clk 0:00:02.9]} 62... Kh8 {[%clk 0:01:11.4]} 63. Qg7# {[%clk 0:00:03.8]} 1-0

[Event "*** Titled Tuesday Blitz"]
[Site "Chess.com"]
[Date "2020.11.03"]
[Round "5"]
[White "maicolbenavides"]
[Black "MYMChessAcademy"]
[Result "1-0"]
[WhiteElo "2239"]
[BlackElo "2058"]
[TimeControl "180+1"]
[EndTime "10:58:50 PST"]
[Termination "maicolbenavides won by checkmate"]

1. e4 {[%clk 0:02:53.1]} 1... c5 {[%clk 0:02:59.3]} 2. Nf3 {[%clk 0:02:52.6]}
2... d6 {[%clk 0:02:56.3]} 3. d4 {[%clk 0:02:51.2]} 3... cxd4 {[%clk 0:02:56.2]}
4. Nxd4 {[%clk 0:02:50.6]} 4... a6 {[%clk 0:02:56]} 5. Nc3 {[%clk 0:02:50.3]}
5... e6 {[%clk 0:02:54.9]} 6. Be2 {[%clk 0:02:49.4]} 6... b5 {[%clk 0:02:48]} 7.
O-O {[%clk 0:02:46]} 7... Bb7 {[%clk 0:02:46.9]} 8. f4 {[%clk 0:02:45.8]} 8...
b4 {[%clk 0:02:43.8]} 9. Na4 {[%clk 0:02:45.3]} 9... Bxe4 {[%clk 0:02:42.7]} 10.
Bf3 {[%clk 0:02:40.9]} 10... Bxf3 {[%clk 0:02:41.6]} 11. Qxf3 {[%clk 0:02:41.8]}
11... Nd7 {[%clk 0:02:33.8]} 12. Bd2 {[%clk 0:02:25.9]} 12... Ngf6 {[%clk
0:02:30.3]} 13. Rae1 {[%clk 0:02:20.9]} 13... Rc8 {[%clk 0:02:14.7]} 14. Bxb4
{[%clk 0:01:35.7]} 14... Rc4 {[%clk 0:02:00.6]} 15. c3 {[%clk 0:01:31.7]} 15...
Qc7 {[%clk 0:01:50.8]} 16. b3 {[%clk 0:01:19.6]} 16... Rc5 {[%clk 0:01:39.6]}
17. Bxc5 {[%clk 0:01:11.9]} 17... dxc5 {[%clk 0:01:35.3]} 18. Qc6 {[%clk
0:00:51.4]} 18... Qxc6 {[%clk 0:01:33.4]} 19. Nxc6 {[%clk 0:00:52.3]} 19... Be7
{[%clk 0:01:33.6]} 20. f5 {[%clk 0:00:48.4]} 20... e5 {[%clk 0:01:24.6]} 21.
Nxe5 {[%clk 0:00:42.4]} 21... Nxe5 {[%clk 0:01:15.1]} 22. Rxe5 {[%clk
0:00:43.3]} 22... Nd7 {[%clk 0:01:09.4]} 23. Re2 {[%clk 0:00:31.6]} 23... f6
{[%clk 0:01:06]} 24. Re6 {[%clk 0:00:23.7]} 24... Kf7 {[%clk 0:00:59.3]} 25.
Rxa6 {[%clk 0:00:18.7]} 25... Ne5 {[%clk 0:00:57]} 26. Ra7 {[%clk 0:00:17.5]}
26... Rc8 {[%clk 0:00:53.3]} 27. Rd1 {[%clk 0:00:16.9]} 27... c4 {[%clk
0:00:45.8]} 28. Nb6 {[%clk 0:00:16.3]} 28... Rb8 {[%clk 0:00:35.5]} 29. Nd7
{[%clk 0:00:11]} 29... Nxd7 {[%clk 0:00:35.7]} 30. Rdxd7 {[%clk 0:00:11.4]}
30... Re8 {[%clk 0:00:36.2]} 31. Rxe7+ {[%clk 0:00:07.6]} 31... Rxe7 {[%clk
0:00:36.2]} 32. Rxe7+ {[%clk 0:00:08.5]} 32... Kxe7 {[%clk 0:00:36.7]} 33. b4
{[%clk 0:00:09.4]} 33... Kd6 {[%clk 0:00:36.6]} 34. a4 {[%clk 0:00:10.3]} 34...
Kc6 {[%clk 0:00:37.1]} 35. Kf2 {[%clk 0:00:10.6]} 35... g6 {[%clk 0:00:37.1]}
36. fxg6 {[%clk 0:00:10.1]} 36... hxg6 {[%clk 0:00:38]} 37. Ke3 {[%clk
0:00:10.7]} 37... g5 {[%clk 0:00:38.6]} 38. Ke4 {[%clk 0:00:10.9]} 38... f5+
{[%clk 0:00:39.3]} 39. Kxf5 {[%clk 0:00:10.9]} 39... Kd5 {[%clk 0:00:40.2]} 40.
Kxg5 {[%clk 0:00:11.8]} 40... Ke4 {[%clk 0:00:40.7]} 41. h4 {[%clk 0:00:12.7]}
41... Kd3 {[%clk 0:00:41.5]} 42. h5 {[%clk 0:00:12.6]} 42... Kxc3 {[%clk
0:00:42.4]} 43. h6 {[%clk 0:00:13.5]} 43... Kxb4 {[%clk 0:00:40.9]} 44. h7
{[%clk 0:00:14.4]} 44... c3 {[%clk 0:00:41.4]} 45. h8=Q {[%clk 0:00:14.7]} 45...
Kb3 {[%clk 0:00:41]} 46. Qxc3+ {[%clk 0:00:14.1]} 46... Kxc3 {[%clk 0:00:39.7]}
47. a5 {[%clk 0:00:15]} 47... Kb4 {[%clk 0:00:40.3]} 48. a6 {[%clk 0:00:15.9]}
48... Kb5 {[%clk 0:00:40.8]} 49. a7 {[%clk 0:00:16.8]} 49... Kb6 {[%clk
0:00:41.6]} 50. a8=Q {[%clk 0:00:17.2]} 50... Kb5 {[%clk 0:00:42.5]} 51. Qc8
{[%clk 0:00:17.5]} 51... Kb6 {[%clk 0:00:42.5]} 52. Kf6 {[%clk 0:00:18.2]} 52...
Ka7 {[%clk 0:00:41.3]} 53. g4 {[%clk 0:00:19.1]} 53... Kb6 {[%clk 0:00:41.5]}
54. g5 {[%clk 0:00:18.4]} 54... Ka7 {[%clk 0:00:42.2]} 55. Qc6 {[%clk
0:00:17.7]} 55... Kb8 {[%clk 0:00:42]} 56. Qd7 {[%clk 0:00:18.1]} 56... Ka8
{[%clk 0:00:41.6]} 57. g6 {[%clk 0:00:19]} 57... Kb8 {[%clk 0:00:42.1]} 58. g7
{[%clk 0:00:19.9]} 58... Ka8 {[%clk 0:00:42.8]} 59. g8=Q# {[%clk 0:00:20.3]} 1-0

[Event "*** Titled Tuesday Blitz"]
[Site "Chess.com"]
[Date "2020.11.03"]
[Round "5"]
[White "FMalexhdez"]
[Black "IMDT02"]
[Result "0-1"]
[WhiteElo "2297"]
[BlackElo "2526"]
[TimeControl "180+1"]
[EndTime "10:58:51 PST"]
[Termination "IMDT02 won on time"]

1. e4 {[%clk 0:02:31]} 1... c5 {[%clk 0:02:58.7]} 2. Nf3 {[%clk 0:02:31.1]} 2...
Nc6 {[%clk 0:02:58.4]} 3. d4 {[%clk 0:02:32]} 3... cxd4 {[%clk 0:02:59.3]} 4.
Nxd4 {[%clk 0:02:32.4]} 4... Nf6 {[%clk 0:02:59.9]} 5. Nc3 {[%clk 0:02:32.8]}
5... d6 {[%clk 0:03:00.5]} 6. Be2 {[%clk 0:02:31.2]} 6... e5 {[%clk 0:02:59.9]}
7. Nb3 {[%clk 0:02:30.5]} 7... Be7 {[%clk 0:02:59.9]} 8. O-O {[%clk 0:02:30.9]}
8... Be6 {[%clk 0:02:59.8]} 9. f4 {[%clk 0:02:30.6]} 9... a5 {[%clk 0:02:59.7]}
10. f5 {[%clk 0:02:29]} 10... Bd7 {[%clk 0:02:55.5]} 11. a4 {[%clk 0:02:22.2]}
11... Nb4 {[%clk 0:02:54.6]} 12. Kh1 {[%clk 0:02:20.3]} 12... Bc6 {[%clk
0:02:54.2]} 13. Bf3 {[%clk 0:02:19.1]} 13... O-O {[%clk 0:02:54]} 14. Qe2 {[%clk
0:02:15]} 14... Rc8 {[%clk 0:02:41.2]} 15. g4 {[%clk 0:02:12.3]} 15... d5 {[%clk
0:02:23.4]} 16. Nxd5 {[%clk 0:01:48.9]} 16... Bxd5 {[%clk 0:02:18.5]} 17. exd5
{[%clk 0:01:48.3]} 17... Rxc2 {[%clk 0:02:15.6]} 18. Qb5 {[%clk 0:01:44]} 18...
e4 {[%clk 0:02:05.2]} 19. Bd1 {[%clk 0:01:39.5]} 19... Rc8 {[%clk 0:01:59.5]}
20. g5 {[%clk 0:01:13.7]} 20... Nfxd5 {[%clk 0:01:56.6]} 21. f6 {[%clk 0:01:14]}
21... gxf6 {[%clk 0:01:56.9]} 22. gxf6 {[%clk 0:01:13.8]} 22... Bxf6 {[%clk
0:01:57.1]} 23. Bh6 {[%clk 0:01:08.6]} 23... Re8 {[%clk 0:01:49.6]} 24. Bh5
{[%clk 0:00:54.3]} 24... Qe7 {[%clk 0:01:30.2]} 25. Rg1+ {[%clk 0:00:37.7]}
25... Kh8 {[%clk 0:01:30.2]} 26. Rg2 {[%clk 0:00:37.6]} 26... Rg8 {[%clk
0:01:28.5]} 27. Rag1 {[%clk 0:00:34.9]} 27... Rxg2 {[%clk 0:01:26.2]} 28. Rxg2
{[%clk 0:00:34.3]} 28... Rg8 {[%clk 0:01:14.6]} 29. Rxg8+ {[%clk 0:00:32.5]}
29... Kxg8 {[%clk 0:01:15.5]} 30. Qxa5 {[%clk 0:00:28.6]} 30... Bg7 {[%clk
0:00:59.7]} 31. Bxg7 {[%clk 0:00:16.9]} 31... Kxg7 {[%clk 0:00:59.3]} 32. Qb6
{[%clk 0:00:12.2]} 32... Qg5 {[%clk 0:00:54.5]} 33. Qg1 {[%clk 0:00:11.1]} 33...
h6 {[%clk 0:00:49.7]} 34. Be2 {[%clk 0:00:09.4]} 34... f5 {[%clk 0:00:49]} 35.
Nc5 {[%clk 0:00:08.6]} 35... Qxg1+ {[%clk 0:00:44.5]} 36. Kxg1 {[%clk
0:00:08.4]} 36... b6 {[%clk 0:00:44.1]} 37. Nd7 {[%clk 0:00:06.2]} 37... Kf7
{[%clk 0:00:40.9]} 38. Kf2 {[%clk 0:00:05.9]} 38... Ke7 {[%clk 0:00:41.1]} 39.
Ne5 {[%clk 0:00:05.5]} 39... Ke6 {[%clk 0:00:38.6]} 40. Nc4 {[%clk 0:00:05.5]}
40... f4 {[%clk 0:00:33.5]} 41. Bd1 {[%clk 0:00:03.5]} 41... Nd3+ {[%clk
0:00:30]} 42. Ke2 {[%clk 0:00:03.3]} 42... Ne5 {[%clk 0:00:28.5]} 43. Nxe5
{[%clk 0:00:02.3]} 43... Kxe5 {[%clk 0:00:29.1]} 44. b3 {[%clk 0:00:01.7]} 44...
Nc3+ {[%clk 0:00:28.2]} 0-1

[Event "*** Titled Tuesday Blitz"]
[Site "Chess.com"]
[Date "2020.11.03"]
[Round "5"]
[White "Maxim_e2e4"]
[Black "ciucas1892"]
[Result "0-1"]
[WhiteElo "2370"]
[BlackElo "2275"]
[TimeControl "180+1"]
[EndTime "10:58:51 PST"]
[Termination "ciucas1892 won on time"]

1. e4 {[%clk 0:03:00.9]} 1... c5 {[%clk 0:02:59.7]} 2. Nf3 {[%clk 0:03:00.2]}
2... Nc6 {[%clk 0:02:56.7]} 3. d4 {[%clk 0:02:59.5]} 3... cxd4 {[%clk
0:02:51.7]} 4. Nxd4 {[%clk 0:03:00.4]} 4... g6 {[%clk 0:02:52.1]} 5. c4 {[%clk
0:03:00.3]} 5... Nf6 {[%clk 0:02:50.6]} 6. Nc3 {[%clk 0:02:59.5]} 6... d6 {[%clk
0:02:49.2]} 7. Be2 {[%clk 0:02:57.4]} 7... Nxd4 {[%clk 0:02:47.6]} 8. Qxd4
{[%clk 0:02:57]} 8... Bg7 {[%clk 0:02:48.5]} 9. Be3 {[%clk 0:02:57.1]} 9... O-O
{[%clk 0:02:46.2]} 10. Qd2 {[%clk 0:02:57.1]} 10... a5 {[%clk 0:02:41.6]} 11. f3
{[%clk 0:02:51.8]} 11... a4 {[%clk 0:02:40.2]} 12. Kf2 {[%clk 0:02:47.1]} 12...
Qa5 {[%clk 0:02:40]} 13. Rhd1 {[%clk 0:02:31]} 13... Be6 {[%clk 0:02:31.4]} 14.
Nd5 {[%clk 0:02:30.5]} 14... Nxd5 {[%clk 0:02:29.2]} 15. cxd5 {[%clk 0:02:26]}
15... Bd7 {[%clk 0:02:29.1]} 16. Qxa5 {[%clk 0:02:15.6]} 16... Rxa5 {[%clk
0:02:30]} 17. Rac1 {[%clk 0:02:14.4]} 17... Bxb2 {[%clk 0:02:09]} 18. Rc7 {[%clk
0:02:11]} 18... Bc8 {[%clk 0:02:07.4]} 19. Rd2 {[%clk 0:01:54.3]} 19... Bf6
{[%clk 0:01:50.4]} 20. Rdc2 {[%clk 0:01:52.1]} 20... Ra8 {[%clk 0:01:47.4]} 21.
g4 {[%clk 0:01:46.5]} 21... e6 {[%clk 0:01:38.7]} 22. g5 {[%clk 0:01:24.5]}
22... Bg7 {[%clk 0:01:34.1]} 23. Bc4 {[%clk 0:01:09.6]} 23... exd5 {[%clk
0:00:59.4]} 24. Bxd5 {[%clk 0:01:08.5]} 24... Be6 {[%clk 0:00:59.7]} 25. Bxe6
{[%clk 0:00:58.8]} 25... fxe6 {[%clk 0:01:00.6]} 26. Rxb7 {[%clk 0:00:58.8]}
26... Rfc8 {[%clk 0:00:59.3]} 27. Rbc7 {[%clk 0:00:45.5]} 27... Rxc7 {[%clk
0:00:56.6]} 28. Rxc7 {[%clk 0:00:46.4]} 28... Rb8 {[%clk 0:00:54.5]} 29. Rc2
{[%clk 0:00:43.1]} 29... d5 {[%clk 0:00:51.7]} 30. exd5 {[%clk 0:00:40.4]} 30...
exd5 {[%clk 0:00:52.6]} 31. Ke2 {[%clk 0:00:37.8]} 31... Be5 {[%clk 0:00:38.8]}
32. Kd3 {[%clk 0:00:35.4]} 32... Kf7 {[%clk 0:00:35.9]} 33. f4 {[%clk 0:00:22]}
33... Bd6 {[%clk 0:00:35.5]} 34. Kd4 {[%clk 0:00:21.5]} 34... Ke6 {[%clk
0:00:33.3]} 35. Re2 {[%clk 0:00:12.9]} 35... Rb4+ {[%clk 0:00:29.6]} 36. Kc3
{[%clk 0:00:11.5]} 36... Re4 {[%clk 0:00:22.5]} 37. Kd3 {[%clk 0:00:10.2]} 37...
Kf5 {[%clk 0:00:21.9]} 38. Rf2 {[%clk 0:00:05.9]} 38... Rxe3+ {[%clk 0:00:20.3]}
39. Kxe3 {[%clk 0:00:04.9]} 39... Bc5+ {[%clk 0:00:21.2]} 0-1

[Event "*** Titled Tuesday Blitz"]
[Site "Chess.com"]
[Date "2020.11.03"]
[Round "5"]
[White "SamuelGhimpu2003"]
[Black "Jospem"]
[Result "0-1"]
[WhiteElo "2540"]
[BlackElo "2999"]
[TimeControl "180+1"]
[EndTime "10:58:52 PST"]
[Termination "Jospem won by resignation"]

1. d4 {[%clk 0:03:00.9]} 1... Nf6 {[%clk 0:02:59.6]} 2. c4 {[%clk 0:02:56.1]}
2... e6 {[%clk 0:03:00.2]} 3. Nc3 {[%clk 0:02:55]} 3... Bb4 {[%clk 0:03:00.6]}
4. Qc2 {[%clk 0:02:54.3]} 4... d6 {[%clk 0:03:00]} 5. Nf3 {[%clk 0:02:51.8]}
5... Nbd7 {[%clk 0:02:58]} 6. a3 {[%clk 0:02:38.3]} 6... Bxc3+ {[%clk
0:02:56.8]} 7. Qxc3 {[%clk 0:02:39.2]} 7... b6 {[%clk 0:02:57]} 8. b3 {[%clk
0:02:33.7]} 8... Bb7 {[%clk 0:02:56.8]} 9. Bb2 {[%clk 0:02:33.9]} 9... Qe7
{[%clk 0:02:57.1]} 10. e3 {[%clk 0:02:31.4]} 10... O-O {[%clk 0:02:57.6]} 11.
Qc2 {[%clk 0:02:29]} 11... c5 {[%clk 0:02:57.1]} 12. Bd3 {[%clk 0:02:22.2]}
12... cxd4 {[%clk 0:02:55.6]} 13. exd4 {[%clk 0:02:23.1]} 13... Bxf3 {[%clk
0:02:53.8]} 14. gxf3 {[%clk 0:02:22.7]} 14... d5 {[%clk 0:02:53.7]} 15. O-O-O
{[%clk 0:02:10]} 15... Rfc8 {[%clk 0:02:47.7]} 16. Kb1 {[%clk 0:02:10.2]} 16...
a5 {[%clk 0:02:47.3]} 17. a4 {[%clk 0:01:57.2]} 17... Nb8 {[%clk 0:02:33.3]} 18.
c5 {[%clk 0:01:24.1]} 18... Nc6 {[%clk 0:02:23.6]} 19. Bb5 {[%clk 0:01:20.2]}
19... Nb4 {[%clk 0:02:01.2]} 20. Qe2 {[%clk 0:01:19.7]} 20... Rab8 {[%clk
0:01:38.2]} 21. Rhg1 {[%clk 0:01:18.6]} 21... g6 {[%clk 0:01:24.6]} 22. Rc1
{[%clk 0:01:17.3]} 22... Nh5 {[%clk 0:01:20.2]} 23. Qe3 {[%clk 0:01:14]} 23...
Ng7 {[%clk 0:01:11.1]} 24. Rg5 {[%clk 0:00:51.3]} 24... Qf6 {[%clk 0:00:55.7]}
25. Rcg1 {[%clk 0:00:45]} 25... Nf5 {[%clk 0:00:53.3]} 26. Qf4 {[%clk
0:00:45.2]} 26... Kg7 {[%clk 0:00:44.6]} 27. h4 {[%clk 0:00:44.9]} 27... h6
{[%clk 0:00:39.8]} 28. R5g4 {[%clk 0:00:44.9]} 28... Ne7 {[%clk 0:00:34.8]} 29.
Qe3 {[%clk 0:00:34.5]} 29... Qf5+ {[%clk 0:00:34.1]} 30. Re4 {[%clk 0:00:23.3]}
30... Kh7 {[%clk 0:00:20]} 31. Kc1 {[%clk 0:00:13.8]} 31... dxe4 {[%clk
0:00:18.5]} 32. fxe4 {[%clk 0:00:14.7]} 32... Qf6 {[%clk 0:00:17]} 33. d5 {[%clk
0:00:15.1]} 33... Rxc5+ {[%clk 0:00:12.6]} 34. Qxc5 {[%clk 0:00:08.3]} 34...
Qxb2+ {[%clk 0:00:12.3]} 35. Kxb2 {[%clk 0:00:09.2]} 35... bxc5 {[%clk
0:00:13.2]} 36. d6 {[%clk 0:00:09.3]} 36... Nec6 {[%clk 0:00:13.4]} 37. Rc1
{[%clk 0:00:08.7]} 37... Rd8 {[%clk 0:00:09.9]} 0-1

[Event "*** Titled Tuesday Blitz"]
[Site "Chess.com"]
[Date "2020.11.03"]
[Round "5"]
[White "ApacheSVD"]
[Black "Ranindu2003"]
[Result "1-0"]
[WhiteElo "2427"]
[BlackElo "2568"]
[TimeControl "180+1"]
[EndTime "10:58:52 PST"]
[Termination "ApacheSVD won on time"]

1. e4 {[%clk 0:03:00.9]} 1... g6 {[%clk 0:02:58]} 2. d4 {[%clk 0:03:00.3]} 2...
Bg7 {[%clk 0:02:58.2]} 3. Nc3 {[%clk 0:02:58.1]} 3... d6 {[%clk 0:02:58.6]} 4.
f4 {[%clk 0:02:55.1]} 4... a6 {[%clk 0:02:58.9]} 5. Nf3 {[%clk 0:02:40.7]} 5...
b5 {[%clk 0:02:57.3]} 6. Bd3 {[%clk 0:02:38.2]} 6... Bb7 {[%clk 0:02:57.2]} 7.
O-O {[%clk 0:02:34.5]} 7... Nd7 {[%clk 0:02:57.2]} 8. e5 {[%clk 0:02:32.5]} 8...
c5 {[%clk 0:02:57.1]} 9. Be4 {[%clk 0:02:29]} 9... Bxe4 {[%clk 0:02:33]} 10.
Nxe4 {[%clk 0:02:29.9]} 10... cxd4 {[%clk 0:02:33.6]} 11. exd6 {[%clk
0:02:25.2]} 11... Qb6 {[%clk 0:02:08.1]} 12. a4 {[%clk 0:02:13.5]} 12... Ngf6
{[%clk 0:01:28.6]} 13. Nxf6+ {[%clk 0:02:02.1]} 13... Bxf6 {[%clk 0:01:24.8]}
14. dxe7 {[%clk 0:01:58.8]} 14... Bxe7 {[%clk 0:01:16.3]} 15. Qe1 {[%clk
0:01:58]} 15... Qc5 {[%clk 0:01:06.1]} 16. axb5 {[%clk 0:01:48.1]} 16... O-O
{[%clk 0:01:04.2]} 17. bxa6 {[%clk 0:01:46]} 17... Bf6 {[%clk 0:00:58.7]} 18. b4
{[%clk 0:01:37.2]} 18... Qb6 {[%clk 0:00:49.9]} 19. Kh1 {[%clk 0:01:24.5]} 19...
Rxa6 {[%clk 0:00:47.3]} 20. Rxa6 {[%clk 0:01:22.1]} 20... Qxa6 {[%clk
0:00:48.2]} 21. Ne5 {[%clk 0:01:13.4]} 21... Re8 {[%clk 0:00:41.4]} 22. Qf2
{[%clk 0:01:01.3]} 22... Nxe5 {[%clk 0:00:34.5]} 23. fxe5 {[%clk 0:00:59.5]}
23... Rxe5 {[%clk 0:00:35.1]} 24. b5 {[%clk 0:00:56]} 24... Qb6 {[%clk
0:00:23.6]} 25. h3 {[%clk 0:00:55]} 25... Rf5 {[%clk 0:00:21.9]} 26. Qe2 {[%clk
0:00:55.3]} 26... Rxf1+ {[%clk 0:00:13]} 27. Qxf1 {[%clk 0:00:56.2]} 27... Be7
{[%clk 0:00:13]} 28. Qd3 {[%clk 0:00:52.1]} 28... Bc5 {[%clk 0:00:12.9]} 29. Bh6
{[%clk 0:00:49.6]} 29... Qe6 {[%clk 0:00:11.2]} 30. Qg3 {[%clk 0:00:44.9]} 30...
Bd6 {[%clk 0:00:08.7]} 31. Bf4 {[%clk 0:00:38.2]} 31... Be7 {[%clk 0:00:08.6]}
32. Qg4 {[%clk 0:00:34.8]} 32... Qe1+ {[%clk 0:00:07.8]} 33. Kh2 {[%clk
0:00:32.5]} 33... f5 {[%clk 0:00:08.4]} 34. Qg3 {[%clk 0:00:25.8]} 34... Qe6
{[%clk 0:00:07.7]} 35. Qf3 {[%clk 0:00:22.1]} 35... Kg7 {[%clk 0:00:05.1]} 36.
Qc6 {[%clk 0:00:19.9]} 1-0

[Event "*** Titled Tuesday Blitz"]
[Site "Chess.com"]
[Date "2020.11.03"]
[Round "5"]
[White "TheCairnTerrier"]
[Black "MF1966Idrisov"]
[Result "0-1"]
[WhiteElo "2192"]
[BlackElo "2347"]
[TimeControl "180+1"]
[EndTime "10:58:52 PST"]
[Termination "MF1966Idrisov won on time"]

1. e4 {[%clk 0:03:00.9]} 1... d5 {[%clk 0:02:58.4]} 2. exd5 {[%clk 0:02:59.4]}
2... Qxd5 {[%clk 0:02:58.3]} 3. Nc3 {[%clk 0:02:59.5]} 3... Qd6 {[%clk
0:02:58.3]} 4. d4 {[%clk 0:02:55.5]} 4... a6 {[%clk 0:02:57.9]} 5. h3 {[%clk
0:02:55.1]} 5... Nf6 {[%clk 0:02:57.1]} 6. Nf3 {[%clk 0:02:54.6]} 6... Bf5
{[%clk 0:02:56.7]} 7. Bd3 {[%clk 0:02:28.2]} 7... Bg6 {[%clk 0:02:53.3]} 8. O-O
{[%clk 0:02:27]} 8... e6 {[%clk 0:02:52.7]} 9. Ne5 {[%clk 0:02:22]} 9... Be7
{[%clk 0:02:46.8]} 10. Bf4 {[%clk 0:02:20.7]} 10... Qb4 {[%clk 0:02:38.7]} 11.
a3 {[%clk 0:01:57.7]} 11... Qb6 {[%clk 0:02:30.3]} 12. Na4 {[%clk 0:01:46.6]}
12... Qa5 {[%clk 0:02:19.9]} 13. c4 {[%clk 0:01:34.8]} 13... c6 {[%clk
0:01:58.6]} 14. b4 {[%clk 0:01:30.9]} 14... Qd8 {[%clk 0:01:57]} 15. Bxg6 {[%clk
0:01:04.9]} 15... hxg6 {[%clk 0:01:53.6]} 16. Qd3 {[%clk 0:00:33]} 16... O-O
{[%clk 0:01:51.3]} 17. Rad1 {[%clk 0:00:32.1]} 17... Nbd7 {[%clk 0:01:50.7]} 18.
Rfe1 {[%clk 0:00:30.3]} 18... Rc8 {[%clk 0:01:47.7]} 19. Qe3 {[%clk 0:00:26.6]}
19... b5 {[%clk 0:01:41.5]} 20. Nc3 {[%clk 0:00:22.9]} 20... bxc4 {[%clk
0:01:38.9]} 21. Nxg6 {[%clk 0:00:22.4]} 21... fxg6 {[%clk 0:01:35.2]} 22. Qxe6+
{[%clk 0:00:22.4]} 22... Rf7 {[%clk 0:01:35.3]} 23. d5 {[%clk 0:00:13.4]} 23...
Nxd5 {[%clk 0:01:25.5]} 24. Nxd5 {[%clk 0:00:13.5]} 24... cxd5 {[%clk
0:01:22.4]} 25. Rxd5 {[%clk 0:00:13.2]} 25... Qb6 {[%clk 0:01:11.5]} 26. Rxd7
{[%clk 0:00:13]} 26... Qxe6 {[%clk 0:01:07.2]} 27. Rxe6 {[%clk 0:00:11.6]} 27...
Bf6 {[%clk 0:01:03.6]} 28. Rxf7 {[%clk 0:00:10]} 28... Kxf7 {[%clk 0:01:03]} 29.
Re2 {[%clk 0:00:10.3]} 29... g5 {[%clk 0:00:58.8]} 30. Rc2 {[%clk 0:00:10.5]}
30... gxf4 {[%clk 0:00:58.1]} 31. Kf1 {[%clk 0:00:09.8]} 31... c3 {[%clk
0:00:57.6]} 32. Ke2 {[%clk 0:00:09.7]} 32... Rd8 {[%clk 0:00:56.3]} 33. a4
{[%clk 0:00:08.4]} 33... g5 {[%clk 0:00:55.3]} 34. b5 {[%clk 0:00:07.9]} 34...
axb5 {[%clk 0:00:55.4]} 35. axb5 {[%clk 0:00:08.6]} 35... Rb8 {[%clk 0:00:55.4]}
36. g3 {[%clk 0:00:08.2]} 36... fxg3 {[%clk 0:00:54.7]} 37. fxg3 {[%clk
0:00:08.3]} 37... Rxb5 {[%clk 0:00:54.8]} 38. Kd3 {[%clk 0:00:07.4]} 38... Rd5+
{[%clk 0:00:52.9]} 39. Ke3 {[%clk 0:00:07.3]} 39... Ke6 {[%clk 0:00:51.1]} 40.
g4 {[%clk 0:00:05.9]} 40... Be5 {[%clk 0:00:49.1]} 41. Rc1 {[%clk 0:00:05.7]}
41... Rd8 {[%clk 0:00:47]} 42. Kf3 {[%clk 0:00:05.5]} 42... Rd3+ {[%clk
0:00:44.8]} 43. Kg2 {[%clk 0:00:05.7]} 43... Rd2+ {[%clk 0:00:43.3]} 44. Kf3
{[%clk 0:00:05.7]} 44... c2 {[%clk 0:00:43.4]} 45. Ke3 {[%clk 0:00:05]} 45...
Bf4+ {[%clk 0:00:43.1]} 46. Kf3 {[%clk 0:00:02.8]} 46... Rd3+ {[%clk 0:00:43.1]}
47. Ke2 {[%clk 0:00:01.7]} 47... Rc3 {[%clk 0:00:42.7]} 48. Re1 {[%clk 0:00:01]}
48... c1=Q {[%clk 0:00:42.1]} 0-1